[Event "Titled Tuesday Blitz December 13 Late 2022"]
[White "Mieles Palau, Daniel"]
[Black "Brown, Andrew"]
[WhiteFideId "3600467"]
[BlackFideId "3206513"]
[WhiteElo "2344"]
[BlackElo "2245"]
[Result "1-0"]
[Round "07"]
[TimeControl "180+1"]
[Date "2022.12.14"]
[WhiteClock "0:00:29"]
[BlackClock "0:00:06"]

1. b3 {[%clk 0:03:00]}  e5 {[%clk 0:02:58]} 2. e3 {[%clk 0:03:00]}  Nc6 {[%clk 0:02:56]} 3. Bb2 {[%clk 0:03:00]}  Nf6 {[%clk 0:02:55]} 4. Bb5 {[%clk 0:02:58]}  Bd6 {[%clk 0:02:51]} 5. Na3 {[%clk 0:02:53]}  a6 {[%clk 0:02:46]} 6. Bxc6 {[%clk 0:02:53]}  dxc6 {[%clk 0:02:46]} 7. Nc4 {[%clk 0:02:53]}  Qe7 {[%clk 0:02:41]} 8. Ne2 {[%clk 0:02:42]}  Bg4 {[%clk 0:02:25]} 9. O-O {[%clk 0:02:32]}  O-O-O {[%clk 0:01:52]} 10. f3 {[%clk 0:02:23]}  Bh5 {[%clk 0:01:47]} 11. e4 {[%clk 0:02:22]}  Bc5+ {[%clk 0:01:17]} 12. Kh1 {[%clk 0:02:21]}  Nd7 {[%clk 0:01:17]} 13. d4 {[%clk 0:02:14]}  exd4 {[%clk 0:01:14]} 14. Bxd4 {[%clk 0:02:12]}  Nb6 {[%clk 0:01:01]} 15. Bxc5 {[%clk 0:01:57]}  Qxc5 {[%clk 0:01:01]} 16. Nxb6+ {[%clk 0:01:57]}  Qxb6 {[%clk 0:00:55]} 17. Qc1 {[%clk 0:01:54]}  f6 {[%clk 0:00:52]} 18. Qf4 {[%clk 0:01:44]}  Qc5 {[%clk 0:00:49]} 19. c3 {[%clk 0:01:23]}  Rd3 {[%clk 0:00:41]} 20. Nd4 {[%clk 0:01:06]}  Rxc3 {[%clk 0:00:23]} 21. Ne6 {[%clk 0:01:04]}  Qe5 {[%clk 0:00:19]} 22. Qxe5 {[%clk 0:00:59]}  fxe5 {[%clk 0:00:20]} 23. Nxg7 {[%clk 0:00:59]}  Bg6 {[%clk 0:00:19]} 24. Ne6 {[%clk 0:00:56]}  Re8 {[%clk 0:00:18]} 25. Ng5 {[%clk 0:00:44]}  h6 {[%clk 0:00:16]} 26. Nh3 {[%clk 0:00:44]}  Rd8 {[%clk 0:00:16]} 27. Nf2 {[%clk 0:00:44]}  Rd2 {[%clk 0:00:16]} 28. Ng4 {[%clk 0:00:41]}  Rcc2 {[%clk 0:00:15]} 29. Rg1 {[%clk 0:00:41]}  Bh5 {[%clk 0:00:09]} 30. Nxe5 {[%clk 0:00:40]}  c5 {[%clk 0:00:08]} 31. Rac1 {[%clk 0:00:36]}  Rxa2 {[%clk 0:00:06]} 32. Rxc5 {[%clk 0:00:33]}  c6 {[%clk 0:00:07]} 33. Nc4 {[%clk 0:00:30]}  Re2 {[%clk 0:00:06]} 34. Rxh5 {[%clk 0:00:29]} 1-0


[Site "https://www.chess.com"]

[Event "Titled Tuesday Blitz December 13 Late 2022"]
[White "Mihajlov, Sebastian"]
[Black "Marchesich, Giovanni"]
[WhiteFideId "1512110"]
[BlackFideId "2824790"]
[WhiteElo "2464"]
[BlackElo "2200"]
[Result "1-0"]
[Round "07"]
[TimeControl "180+1"]
[Date "2022.12.14"]
[WhiteClock "0:02:12"]
[BlackClock "0:01:52"]

1. e4 {[%clk 0:03:00]}  e5 {[%clk 0:02:57]} 2. Nc3 {[%clk 0:03:00]}  Nf6 {[%clk 0:02:57]} 3. Bc4 {[%clk 0:03:01]}  Bc5 {[%clk 0:02:56]} 4. d3 {[%clk 0:03:00]}  Nc6 {[%clk 0:02:56]} 5. f4 {[%clk 0:03:01]}  d5 {[%clk 0:02:54]} 6. exd5 {[%clk 0:03:00]}  Bg4 {[%clk 0:02:54]} 7. Nge2 {[%clk 0:02:43]}  Nd4 {[%clk 0:02:51]} 8. fxe5 {[%clk 0:02:41]}  Nd7 {[%clk 0:02:51]} 9. Bf4 {[%clk 0:02:40]}  Qh4+ {[%clk 0:02:42]} 10. Bg3 {[%clk 0:02:40]}  Qh5 {[%clk 0:02:42]} 11. Qd2 {[%clk 0:02:34]}  Nxe5 {[%clk 0:02:34]} 12. Nxd4 {[%clk 0:02:19]}  Bxd4 {[%clk 0:02:30]} 13. Qf4 {[%clk 0:02:14]}  Bxc3+ {[%clk 0:02:05]} 14. bxc3 {[%clk 0:02:14]}  O-O-O {[%clk 0:02:04]} 15. O-O {[%clk 0:02:12]}  Nxc4 {[%clk 0:01:52]} 16. Qxc7# {[%clk 0:02:12]} 1-0


[Site "https://www.chess.com"]

[Event "Titled Tuesday Blitz December 13 Late 2022"]
[White "Moral Garcia, Serafin"]
[Black "Rian, Kapriaga"]
[WhiteFideId "2201925"]
[BlackFideId "7103263"]
[WhiteElo "2259"]
[BlackElo "2303"]
[Result "1-0"]
[Round "07"]
[TimeControl "180+1"]
[Date "2022.12.14"]
[WhiteClock "0:01:43"]
[BlackClock "0:00:06"]

1. Nf3 {[%clk 0:03:00]}  d5 {[%clk 0:02:59]} 2. b3 {[%clk 0:03:00]}  Nf6 {[%clk 0:02:59]} 3. Bb2 {[%clk 0:03:00]}  Bf5 {[%clk 0:02:59]} 4. Nh4 {[%clk 0:02:59]}  Bg4 {[%clk 0:02:54]} 5. h3 {[%clk 0:02:59]}  Bh5 {[%clk 0:02:54]} 6. g4 {[%clk 0:02:59]}  Bg6 {[%clk 0:02:54]} 7. e3 {[%clk 0:02:56]}  e6 {[%clk 0:02:54]} 8. d3 {[%clk 0:02:55]}  Nfd7 {[%clk 0:02:45]} 9. Nxg6 {[%clk 0:02:55]}  hxg6 {[%clk 0:02:45]} 10. Bg2 {[%clk 0:02:55]}  c6 {[%clk 0:02:42]} 11. Nd2 {[%clk 0:02:55]}  e5 {[%clk 0:02:40]} 12. c4 {[%clk 0:02:54]}  dxc4 {[%clk 0:02:39]} 13. dxc4 {[%clk 0:02:54]}  Be7 {[%clk 0:02:33]} 14. Ne4 {[%clk 0:02:51]}  Qc7 {[%clk 0:02:30]} 15. Qe2 {[%clk 0:02:48]}  Bb4+ {[%clk 0:02:17]} 16. Kf1 {[%clk 0:02:47]}  O-O {[%clk 0:02:14]} 17. g5 {[%clk 0:02:43]}  Nc5 {[%clk 0:02:06]} 18. h4 {[%clk 0:02:41]}  Nbd7 {[%clk 0:01:55]} 19. h5 {[%clk 0:02:39]}  Ne6 {[%clk 0:01:46]} 20. Qg4 {[%clk 0:02:33]}  Rae8 {[%clk 0:01:36]} 21. Qh4 {[%clk 0:02:27]}  a5 {[%clk 0:01:15]} 22. h6 {[%clk 0:02:26]}  f5 {[%clk 0:01:10]} 23. hxg7 {[%clk 0:01:58]}  Nxg7 {[%clk 0:01:10]} 24. Nf6+ {[%clk 0:01:58]}  Nxf6 {[%clk 0:00:49]} 25. gxf6 {[%clk 0:01:58]}  Nh5 {[%clk 0:00:49]} 26. Bf3 {[%clk 0:01:57]}  Qh7 {[%clk 0:00:19]} 27. Bxh5 {[%clk 0:01:55]}  gxh5 {[%clk 0:00:17]} 28. Rg1+ {[%clk 0:01:53]}  Kh8 {[%clk 0:00:15]} 29. Rg5 {[%clk 0:01:53]}  Rxf6 {[%clk 0:00:14]} 30. Rxh5 {[%clk 0:01:53]}  Rf7 {[%clk 0:00:12]} 31. Rxh7+ {[%clk 0:01:51]}  Rxh7 {[%clk 0:00:12]} 32. Qf6+ {[%clk 0:01:51]}  Kg8 {[%clk 0:00:10]} 33. Ke2 {[%clk 0:01:50]}  Rg7 {[%clk 0:00:08]} 34. Bxe5 {[%clk 0:01:48]}  Bf8 {[%clk 0:00:08]} 35. Qxf5 {[%clk 0:01:45]}  Ree7 {[%clk 0:00:06]} 36. Bxg7 {[%clk 0:01:45]}  Bxg7 {[%clk 0:00:06]} 37. Rd1 {[%clk 0:01:43]} 1-0


[Site "https://www.chess.com"]

[Event "Titled Tuesday Blitz December 13 Late 2022"]
[White "Omelja, Artem"]
[Black "Forgacs, Attila Jr."]
[WhiteFideId "14119846"]
[BlackFideId "773654"]
[WhiteElo "2404"]
[BlackElo "2168"]
[Result "0-1"]
[Round "07"]
[TimeControl "180+1"]
[Date "2022.12.14"]
[WhiteClock "0:00:04"]
[BlackClock "0:00:20"]

1. e4 {[%clk 0:03:00]}  e5 {[%clk 0:03:00]} 2. Nf3 {[%clk 0:02:51]}  Nc6 {[%clk 0:03:00]} 3. Nc3 {[%clk 0:02:48]}  Nf6 {[%clk 0:03:00]} 4. a3 {[%clk 0:02:47]}  d5 {[%clk 0:03:00]} 5. exd5 {[%clk 0:02:46]}  Nxd5 {[%clk 0:03:01]} 6. Bc4 {[%clk 0:02:46]}  Nxc3 {[%clk 0:02:59]} 7. bxc3 {[%clk 0:02:44]}  Bd6 {[%clk 0:02:55]} 8. O-O {[%clk 0:02:43]}  O-O {[%clk 0:02:55]} 9. d3 {[%clk 0:02:39]}  Kh8 {[%clk 0:02:52]} 10. Re1 {[%clk 0:02:36]}  Bg4 {[%clk 0:02:51]} 11. h3 {[%clk 0:02:31]}  Bh5 {[%clk 0:02:51]} 12. d4 {[%clk 0:02:00]}  exd4 {[%clk 0:02:50]} 13. g4 {[%clk 0:01:59]}  Bg6 {[%clk 0:02:41]} 14. cxd4 {[%clk 0:01:57]}  f5 {[%clk 0:02:37]} 15. Bg5 {[%clk 0:01:40]}  Be7 {[%clk 0:02:32]} 16. Bxe7 {[%clk 0:01:37]}  Nxe7 {[%clk 0:02:33]} 17. Ng5 {[%clk 0:01:37]}  Qd6 {[%clk 0:02:17]} 18. c3 {[%clk 0:01:06]}  fxg4 {[%clk 0:02:15]} 19. Qxg4 {[%clk 0:01:06]}  Rf5 {[%clk 0:01:56]} 20. Re6 {[%clk 0:00:57]}  Qd7 {[%clk 0:01:42]} 21. Rae1 {[%clk 0:00:55]}  Nd5 {[%clk 0:01:33]} 22. Qh4 {[%clk 0:00:17]}  Rf4 {[%clk 0:01:11]} 23. Qg3 {[%clk 0:00:16]}  Raf8 {[%clk 0:01:10]} 24. R1e2 {[%clk 0:00:13]}  R4f5 {[%clk 0:01:07]} 25. Rxg6 {[%clk 0:00:12]}  Nxc3 {[%clk 0:00:51]} 26. Qh4 {[%clk 0:00:07]}  Nxe2+ {[%clk 0:00:50]} 27. Bxe2 {[%clk 0:00:08]}  Rxg5+ {[%clk 0:00:41]} 28. Rxg5 {[%clk 0:00:09]}  Qe7 {[%clk 0:00:34]} 29. Bf1 {[%clk 0:00:06]}  h6 {[%clk 0:00:34]} 30. Rg4 {[%clk 0:00:06]}  Qxa3 {[%clk 0:00:29]} 31. Qg3 {[%clk 0:00:04]}  Qe7 {[%clk 0:00:25]} 32. Qe3 {[%clk 0:00:03]}  Qf6 {[%clk 0:00:22]} 33. Bg2 {[%clk 0:00:04]}  c6 {[%clk 0:00:22]} 34. Rf4 {[%clk 0:00:04]}  Qxf4 {[%clk 0:00:20]} 0-1


[Site "https://www.chess.com"]

[Event "Titled Tuesday Blitz December 13 Late 2022"]
[White "Papp, Levente"]
[Black "Samsonkin, Artiom"]
[WhiteFideId "751243"]
[BlackFideId "13503111"]
[WhiteElo "2380"]
[BlackElo "2524"]
[Result "0-1"]
[Round "07"]
[TimeControl "180+1"]
[Date "2022.12.13"]
[WhiteClock "0:00:01"]
[BlackClock "0:00:14"]

1. c4 {[%clk 0:03:00]}  Nf6 {[%clk 0:02:59]} 2. g3 {[%clk 0:02:59]}  e5 {[%clk 0:02:57]} 3. Bg2 {[%clk 0:03:00]}  c6 {[%clk 0:02:58]} 4. d4 {[%clk 0:02:58]}  e4 {[%clk 0:02:54]} 5. Nc3 {[%clk 0:02:55]}  d5 {[%clk 0:02:53]} 6. cxd5 {[%clk 0:02:55]}  cxd5 {[%clk 0:02:54]} 7. Bg5 {[%clk 0:02:55]}  Bb4 {[%clk 0:02:53]} 8. Rc1 {[%clk 0:02:55]}  Nbd7 {[%clk 0:02:51]} 9. h4 {[%clk 0:02:52]}  h6 {[%clk 0:02:49]} 10. Bxf6 {[%clk 0:02:42]}  Bxc3+ {[%clk 0:02:43]} 11. Rxc3 {[%clk 0:02:41]}  Nxf6 {[%clk 0:02:44]} 12. Qa4+ {[%clk 0:02:38]}  Bd7 {[%clk 0:02:43]} 13. Qb4 {[%clk 0:02:33]}  Bc6 {[%clk 0:02:41]} 14. Nh3 {[%clk 0:02:23]}  a5 {[%clk 0:02:40]} 15. Qa3 {[%clk 0:02:19]}  Rc8 {[%clk 0:02:27]} 16. Nf4 {[%clk 0:02:13]}  b5 {[%clk 0:02:23]} 17. b4 {[%clk 0:02:04]}  a4 {[%clk 0:01:53]} 18. Qc1 {[%clk 0:01:56]}  Qd6 {[%clk 0:01:50]} 19. Rc5 {[%clk 0:01:50]}  O-O {[%clk 0:01:50]} 20. Bh3 {[%clk 0:01:47]}  Bd7 {[%clk 0:01:31]} 21. Bxd7 {[%clk 0:01:23]}  Qxd7 {[%clk 0:01:32]} 22. O-O {[%clk 0:01:17]}  Kh7 {[%clk 0:01:06]} 23. Qd2 {[%clk 0:01:02]}  Rg8 {[%clk 0:00:45]} 24. Kg2 {[%clk 0:00:57]}  Qf5 {[%clk 0:00:32]} 25. Rxb5 {[%clk 0:00:36]}  g5 {[%clk 0:00:19]} 26. hxg5 {[%clk 0:00:37]}  hxg5 {[%clk 0:00:19]} 27. Rh1+ {[%clk 0:00:37]}  Kg7 {[%clk 0:00:19]} 28. Nh5+ {[%clk 0:00:34]}  Nxh5 {[%clk 0:00:16]} 29. Rxh5 {[%clk 0:00:35]}  Kg6 {[%clk 0:00:17]} 30. Rh1 {[%clk 0:00:29]}  Rh8 {[%clk 0:00:17]} 31. Rb6+ {[%clk 0:00:26]}  f6 {[%clk 0:00:18]} 32. Qd1 {[%clk 0:00:15]}  Rxh1 {[%clk 0:00:15]} 33. Qxh1 {[%clk 0:00:16]}  e3 {[%clk 0:00:16]} 34. f3 {[%clk 0:00:07]}  Rc2 {[%clk 0:00:16]} 35. Qd1 {[%clk 0:00:05]}  Rd2 {[%clk 0:00:15]} 36. Qe1 {[%clk 0:00:04]}  g4 {[%clk 0:00:14]} 37. Kh2 {[%clk 0:00:01]}  gxf3 {[%clk 0:00:14]} 0-1


[Site "https://www.chess.com"]

[Event "Titled Tuesday Blitz December 13 Late 2022"]
[White "Paravyan, David"]
[Black "Boruchovsky, Avital"]
[WhiteFideId "4194985"]
[BlackFideId "2800055"]
[WhiteElo "2551"]
[BlackElo "2450"]
[Result "1-0"]
[Round "07"]
[TimeControl "180+1"]
[Date "2022.12.13"]
[WhiteClock "0:00:13"]
[BlackClock "0:00:02"]

1. e4 {[%clk 0:03:00]}  c5 {[%clk 0:02:59]} 2. Nf3 {[%clk 0:02:59]}  b6 {[%clk 0:02:53]} 3. d4 {[%clk 0:02:59]}  cxd4 {[%clk 0:02:54]} 4. Nxd4 {[%clk 0:03:00]}  Bb7 {[%clk 0:02:55]} 5. Nc3 {[%clk 0:03:00]}  g6 {[%clk 0:02:54]} 6. h4 {[%clk 0:02:57]}  Bg7 {[%clk 0:02:49]} 7. h5 {[%clk 0:02:56]}  Nc6 {[%clk 0:02:49]} 8. Be3 {[%clk 0:02:51]}  a6 {[%clk 0:01:57]} 9. Bc4 {[%clk 0:02:38]}  b5 {[%clk 0:01:54]} 10. Bb3 {[%clk 0:02:37]}  e6 {[%clk 0:01:46]} 11. Qd2 {[%clk 0:02:31]}  Nge7 {[%clk 0:01:32]} 12. O-O-O {[%clk 0:02:29]}  Ne5 {[%clk 0:01:15]} 13. Bh6 {[%clk 0:02:25]}  Bf6 {[%clk 0:00:54]} 14. Qf4 {[%clk 0:02:08]}  N7c6 {[%clk 0:00:46]} 15. Nxe6 {[%clk 0:01:50]}  fxe6 {[%clk 0:00:42]} 16. Bxe6 {[%clk 0:01:50]}  Nb4 {[%clk 0:00:25]} 17. hxg6 {[%clk 0:01:44]}  hxg6 {[%clk 0:00:21]} 18. Kb1 {[%clk 0:01:30]}  Qe7 {[%clk 0:00:20]} 19. Bb3 {[%clk 0:00:57]}  O-O-O {[%clk 0:00:17]} 20. a3 {[%clk 0:00:56]}  g5 {[%clk 0:00:17]} 21. Qf5 {[%clk 0:00:44]}  Rh7 {[%clk 0:00:15]} 22. axb4 {[%clk 0:00:32]}  Rdh8 {[%clk 0:00:15]} 23. Bf8 {[%clk 0:00:33]}  Qxf8 {[%clk 0:00:04]} 24. Rxh7 {[%clk 0:00:32]}  Qxb4 {[%clk 0:00:05]} 25. Qxf6 {[%clk 0:00:23]}  Rxh7 {[%clk 0:00:04]} 26. Qxe5 {[%clk 0:00:18]}  Re7 {[%clk 0:00:05]} 27. Qxg5 {[%clk 0:00:17]}  Re8 {[%clk 0:00:02]} 28. Qg7 {[%clk 0:00:15]}  Bc6 {[%clk 0:00:02]} 29. f3 {[%clk 0:00:14]}  Qc5 {[%clk 0:00:02]} 30. Qd4 {[%clk 0:00:14]}  Qe7 {[%clk 0:00:02]} 31. Bd5 {[%clk 0:00:14]}  b4 {[%clk 0:00:02]} 32. Bxc6 {[%clk 0:00:13]}  dxc6 {[%clk 0:00:02]} 33. Na4 {[%clk 0:00:13]} 1-0


[Site "https://www.chess.com"]

[Event "Titled Tuesday Blitz December 13 Late 2022"]
[White "Pasti, Aron"]
[Black "Ballester Llagaria, Luis Eduardo"]
[WhiteFideId "785857"]
[BlackFideId "2297620"]
[WhiteElo "2250"]
[BlackElo "2344"]
[Result "0-1"]
[Round "07"]
[TimeControl "180+1"]
[Date "2022.12.14"]
[WhiteClock "0:00:05"]
[BlackClock "0:00:36"]

1. e4 {[%clk 0:03:00]}  c5 {[%clk 0:02:59]} 2. Nf3 {[%clk 0:03:00]}  e6 {[%clk 0:02:59]} 3. d4 {[%clk 0:03:01]}  cxd4 {[%clk 0:03:00]} 4. Nxd4 {[%clk 0:03:01]}  Nc6 {[%clk 0:03:01]} 5. Nc3 {[%clk 0:03:01]}  Qc7 {[%clk 0:03:01]} 6. Be3 {[%clk 0:03:01]}  a6 {[%clk 0:03:01]} 7. g4 {[%clk 0:02:58]}  b5 {[%clk 0:02:58]} 8. Bg2 {[%clk 0:02:55]}  Bb7 {[%clk 0:02:58]} 9. Qd2 {[%clk 0:02:52]}  Nge7 {[%clk 0:02:57]} 10. O-O-O {[%clk 0:02:50]}  Nxd4 {[%clk 0:02:57]} 11. Bxd4 {[%clk 0:02:50]}  Nc6 {[%clk 0:02:58]} 12. Bb6 {[%clk 0:02:48]}  Qc8 {[%clk 0:02:55]} 13. f4 {[%clk 0:02:43]}  Bb4 {[%clk 0:02:45]} 14. e5 {[%clk 0:02:40]}  Na5 {[%clk 0:02:39]} 15. Bf2 {[%clk 0:02:09]}  Bxg2 {[%clk 0:02:34]} 16. Rhg1 {[%clk 0:02:03]}  Bf3 {[%clk 0:02:19]} 17. Rde1 {[%clk 0:01:57]}  Bxc3 {[%clk 0:02:18]} 18. bxc3 {[%clk 0:01:55]}  Bd5 {[%clk 0:02:18]} 19. f5 {[%clk 0:01:51]}  Qc4 {[%clk 0:02:16]} 20. Qg5 {[%clk 0:01:41]}  Qxc3 {[%clk 0:01:45]} 21. Qxg7 {[%clk 0:01:36]}  O-O-O {[%clk 0:01:39]} 22. Rg3 {[%clk 0:01:28]}  Qa1+ {[%clk 0:01:31]} 23. Kd2 {[%clk 0:01:28]}  Nc4+ {[%clk 0:01:31]} 24. Ke2 {[%clk 0:01:24]}  Qxe5+ {[%clk 0:01:31]} 25. Qxe5 {[%clk 0:01:23]}  Nxe5 {[%clk 0:01:32]} 26. Bd4 {[%clk 0:01:22]}  f6 {[%clk 0:01:31]} 27. g5 {[%clk 0:01:22]}  exf5 {[%clk 0:01:26]} 28. gxf6 {[%clk 0:01:21]}  Rhe8 {[%clk 0:01:24]} 29. Kf1 {[%clk 0:00:48]}  Ng6 {[%clk 0:01:19]} 30. Rd1 {[%clk 0:00:35]}  Bc4+ {[%clk 0:01:17]} 31. Kg1 {[%clk 0:00:32]}  Re4 {[%clk 0:01:12]} 32. Bb2 {[%clk 0:00:29]}  Rf8 {[%clk 0:01:07]} 33. Rd6 {[%clk 0:00:26]}  Re1+ {[%clk 0:00:59]} 34. Kf2 {[%clk 0:00:22]}  Re2+ {[%clk 0:00:59]} 35. Kf3 {[%clk 0:00:21]}  Rxc2 {[%clk 0:01:00]} 36. Bd4 {[%clk 0:00:18]}  f4 {[%clk 0:00:47]} 37. Rg5 {[%clk 0:00:14]}  Be2+ {[%clk 0:00:38]} 38. Ke4 {[%clk 0:00:08]}  Re8+ {[%clk 0:00:38]} 39. Kd5 {[%clk 0:00:05]}  Bf3# {[%clk 0:00:36]} 0-1


[Site "https://www.chess.com"]

[Event "Titled Tuesday Blitz December 13 Late 2022"]
[White "Pein, Jonathan"]
[Black "Barria Zuniga, Daniel"]
[WhiteFideId "417092"]
[BlackFideId "3400816"]
[WhiteElo "2225"]
[BlackElo "2414"]
[Result "0-1"]
[Round "07"]
[TimeControl "180+1"]
[Date "2022.12.14"]
[WhiteClock "0:00:23"]
[BlackClock "0:00:14"]

1. b3 {[%clk 0:03:00]}  d5 {[%clk 0:02:58]} 2. Bb2 {[%clk 0:03:00]}  c5 {[%clk 0:02:58]} 3. Nf3 {[%clk 0:02:59]}  Nf6 {[%clk 0:02:54]} 4. g3 {[%clk 0:03:00]}  g6 {[%clk 0:02:54]} 5. Bg2 {[%clk 0:03:01]}  Bg7 {[%clk 0:02:54]} 6. O-O {[%clk 0:03:01]}  O-O {[%clk 0:02:55]} 7. e3 {[%clk 0:03:01]}  Nc6 {[%clk 0:02:53]} 8. Ne5 {[%clk 0:03:01]}  Qc7 {[%clk 0:02:46]} 9. Nxc6 {[%clk 0:03:01]}  Qxc6 {[%clk 0:02:47]} 10. c4 {[%clk 0:03:00]}  e6 {[%clk 0:02:34]} 11. Be5 {[%clk 0:02:55]}  b6 {[%clk 0:01:56]} 12. d4 {[%clk 0:02:55]}  Bb7 {[%clk 0:01:53]} 13. Nc3 {[%clk 0:02:52]}  Rfd8 {[%clk 0:01:45]} 14. Rc1 {[%clk 0:02:48]}  Qe8 {[%clk 0:01:20]} 15. Nb5 {[%clk 0:02:45]}  Qe7 {[%clk 0:01:14]} 16. cxd5 {[%clk 0:02:37]}  Bxd5 {[%clk 0:01:08]} 17. Bxd5 {[%clk 0:02:15]}  Nxd5 {[%clk 0:01:05]} 18. Bxg7 {[%clk 0:02:15]}  Kxg7 {[%clk 0:01:05]} 19. Qg4 {[%clk 0:01:34]}  a6 {[%clk 0:01:03]} 20. Na3 {[%clk 0:01:31]}  Nf6 {[%clk 0:01:00]} 21. Qf4 {[%clk 0:01:13]}  cxd4 {[%clk 0:00:57]} 22. Nc4 {[%clk 0:01:10]}  dxe3 {[%clk 0:00:43]} 23. Nxe3 {[%clk 0:01:09]}  Rac8 {[%clk 0:00:29]} 24. Qe5 {[%clk 0:01:02]}  Rc5 {[%clk 0:00:25]} 25. Rxc5 {[%clk 0:01:00]}  Qxc5 {[%clk 0:00:25]} 26. Qxc5 {[%clk 0:00:48]}  bxc5 {[%clk 0:00:26]} 27. Rc1 {[%clk 0:00:48]}  Rd2 {[%clk 0:00:26]} 28. a4 {[%clk 0:00:37]}  Ne4 {[%clk 0:00:23]} 29. Rc2 {[%clk 0:00:35]}  Rxc2 {[%clk 0:00:20]} 30. Nxc2 {[%clk 0:00:36]}  Kf6 {[%clk 0:00:19]} 31. b4 {[%clk 0:00:37]}  cxb4 {[%clk 0:00:17]} 32. Nxb4 {[%clk 0:00:38]}  Nc5 {[%clk 0:00:17]} 33. f4 {[%clk 0:00:33]}  Kf5 {[%clk 0:00:16]} 34. Kf2 {[%clk 0:00:33]}  Ke4 {[%clk 0:00:16]} 35. Ke2 {[%clk 0:00:33]}  Kd4 {[%clk 0:00:17]} 36. Nc6+ {[%clk 0:00:34]}  Kc3 {[%clk 0:00:15]} 37. Nd8 {[%clk 0:00:32]}  Nxa4 {[%clk 0:00:15]} 38. Nxf7 {[%clk 0:00:33]}  Nc5 {[%clk 0:00:15]} 39. Kd1 {[%clk 0:00:27]}  a5 {[%clk 0:00:15]} 40. Kc1 {[%clk 0:00:28]}  a4 {[%clk 0:00:15]} 41. Ng5 {[%clk 0:00:25]}  a3 {[%clk 0:00:14]} 42. Kb1 {[%clk 0:00:26]}  Kb3 {[%clk 0:00:13]} 43. Nf3 {[%clk 0:00:21]}  a2+ {[%clk 0:00:13]} 44. Ka1 {[%clk 0:00:21]}  Ka3 {[%clk 0:00:12]} 45. Nd4 {[%clk 0:00:16]}  Nb3+ {[%clk 0:00:12]} 46. Nxb3 {[%clk 0:00:16]}  Kxb3 {[%clk 0:00:13]} 47. g4 {[%clk 0:00:17]}  h5 {[%clk 0:00:12]} 48. gxh5 {[%clk 0:00:16]}  gxh5 {[%clk 0:00:12]} 49. h4 {[%clk 0:00:17]}  Kc4 {[%clk 0:00:11]} 50. Kxa2 {[%clk 0:00:17]}  Kd4 {[%clk 0:00:12]} 51. Kb3 {[%clk 0:00:18]}  Ke4 {[%clk 0:00:12]} 52. Kc4 {[%clk 0:00:19]}  Kxf4 {[%clk 0:00:12]} 53. Kd4 {[%clk 0:00:20]}  e5+ {[%clk 0:00:12]} 54. Kd3 {[%clk 0:00:20]}  Kf3 {[%clk 0:00:12]} 55. Kd2 {[%clk 0:00:21]}  e4 {[%clk 0:00:12]} 56. Ke1 {[%clk 0:00:19]}  Ke3 {[%clk 0:00:12]} 57. Kf1 {[%clk 0:00:20]}  Kd2 {[%clk 0:00:12]} 58. Kf2 {[%clk 0:00:21]}  e3+ {[%clk 0:00:13]} 59. Kf3 {[%clk 0:00:22]}  e2 {[%clk 0:00:13]} 60. Kf4 {[%clk 0:00:22]}  e1=Q {[%clk 0:00:13]} 61. Kg5 {[%clk 0:00:23]}  Qe2 {[%clk 0:00:14]} 0-1


[Site "https://www.chess.com"]

[Event "Titled Tuesday Blitz December 13 Late 2022"]
[White "Przybylski, Wojciech"]
[Black "Polster, Christian"]
[WhiteFideId "1117599"]
[BlackFideId "12965081"]
[WhiteElo "2217"]
[BlackElo "2195"]
[Result "1-0"]
[Round "07"]
[TimeControl "180+1"]
[Date "2022.12.14"]
[WhiteClock "0:01:38"]
[BlackClock "0:00:07"]

1. e4 {[%clk 0:03:00]}  c5 {[%clk 0:02:57]} 2. Nf3 {[%clk 0:03:00]}  d6 {[%clk 0:02:52]} 3. Bb5+ {[%clk 0:02:59]}  Bd7 {[%clk 0:02:50]} 4. Bxd7+ {[%clk 0:02:57]}  Qxd7 {[%clk 0:02:49]} 5. c4 {[%clk 0:02:58]}  Nc6 {[%clk 0:02:49]} 6. Nc3 {[%clk 0:02:57]}  Nf6 {[%clk 0:02:48]} 7. O-O {[%clk 0:02:57]}  g6 {[%clk 0:02:48]} 8. d3 {[%clk 0:02:56]}  Bg7 {[%clk 0:02:47]} 9. h3 {[%clk 0:02:55]}  O-O {[%clk 0:02:41]} 10. Be3 {[%clk 0:02:54]}  Rfc8 {[%clk 0:02:37]} 11. Qd2 {[%clk 0:02:54]}  Ne8 {[%clk 0:02:36]} 12. Bh6 {[%clk 0:02:49]}  Bh8 {[%clk 0:02:35]} 13. Rae1 {[%clk 0:02:45]}  Nc7 {[%clk 0:02:34]} 14. Ng5 {[%clk 0:02:41]}  Nd4 {[%clk 0:02:18]} 15. f4 {[%clk 0:02:39]}  Nce6 {[%clk 0:02:07]} 16. Nf3 {[%clk 0:02:38]}  Nxf3+ {[%clk 0:01:50]} 17. Rxf3 {[%clk 0:02:39]}  Nd4 {[%clk 0:01:50]} 18. Rg3 {[%clk 0:02:35]}  b5 {[%clk 0:01:44]} 19. f5 {[%clk 0:02:27]}  Rab8 {[%clk 0:01:11]} 20. Nd5 {[%clk 0:02:17]}  bxc4 {[%clk 0:01:03]} 21. dxc4 {[%clk 0:02:17]}  Rxb2 {[%clk 0:01:01]} 22. Qd3 {[%clk 0:02:15]}  Rcb8 {[%clk 0:00:38]} 23. Bg5 {[%clk 0:02:12]}  Re8 {[%clk 0:00:25]} 24. f6 {[%clk 0:02:07]}  e6 {[%clk 0:00:21]} 25. Ne7+ {[%clk 0:02:06]}  Rxe7 {[%clk 0:00:21]} 26. fxe7 {[%clk 0:02:06]}  Be5 {[%clk 0:00:17]} 27. Rg4 {[%clk 0:01:56]}  f6 {[%clk 0:00:16]} 28. Bc1 {[%clk 0:01:55]}  Rxa2 {[%clk 0:00:16]} 29. Qb1 {[%clk 0:01:51]}  Ne2+ {[%clk 0:00:09]} 30. Rxe2 {[%clk 0:01:40]}  Rxe2 {[%clk 0:00:10]} 31. Qb8+ {[%clk 0:01:40]}  Kg7 {[%clk 0:00:07]} 32. Qf8# {[%clk 0:01:38]} 1-0


[Site "https://www.chess.com"]

[Event "Titled Tuesday Blitz December 13 Late 2022"]
[White "Radovanovic, Dusan"]
[Black "Rodriguez Santiago, Jaime"]
[WhiteFideId "926868"]
[BlackFideId "3100898"]
[WhiteElo "2337"]
[BlackElo "2025"]
[Result "1-0"]
[Round "07"]
[TimeControl "180+1"]
[Date "2022.12.14"]
[WhiteClock "0:00:25"]
[BlackClock "0:00:16"]

1. e4 {[%clk 0:03:00]}  c6 {[%clk 0:02:57]} 2. d4 {[%clk 0:03:00]}  d5 {[%clk 0:02:57]} 3. e5 {[%clk 0:03:00]}  Bf5 {[%clk 0:02:55]} 4. h4 {[%clk 0:03:01]}  h5 {[%clk 0:02:55]} 5. Bd3 {[%clk 0:03:02]}  Bxd3 {[%clk 0:02:53]} 6. Qxd3 {[%clk 0:03:02]}  Qa5+ {[%clk 0:02:53]} 7. Nd2 {[%clk 0:03:02]}  e6 {[%clk 0:02:52]} 8. Ne2 {[%clk 0:02:57]}  Qa6 {[%clk 0:02:52]} 9. c4 {[%clk 0:02:57]}  c5 {[%clk 0:02:52]} 10. b3 {[%clk 0:02:52]}  Nc6 {[%clk 0:02:52]} 11. O-O {[%clk 0:02:46]}  Nh6 {[%clk 0:02:51]} 12. Nf3 {[%clk 0:02:41]}  Nf5 {[%clk 0:02:50]} 13. Qc2 {[%clk 0:02:10]}  dxc4 {[%clk 0:02:38]} 14. d5 {[%clk 0:01:40]}  Nb4 {[%clk 0:02:34]} 15. Qe4 {[%clk 0:01:38]}  Nxd5 {[%clk 0:02:21]} 16. bxc4 {[%clk 0:01:37]}  Nb6 {[%clk 0:02:13]} 17. Ng3 {[%clk 0:01:33]}  g6 {[%clk 0:01:45]} 18. Bg5 {[%clk 0:01:31]}  Rb8 {[%clk 0:01:26]} 19. Rad1 {[%clk 0:01:20]}  Be7 {[%clk 0:01:19]} 20. Bxe7 {[%clk 0:01:18]}  Nxe7 {[%clk 0:01:16]} 21. Qf4 {[%clk 0:00:57]}  Qxc4 {[%clk 0:01:03]} 22. Ne4 {[%clk 0:00:55]}  Nf5 {[%clk 0:00:33]} 23. Nf6+ {[%clk 0:00:55]}  Ke7 {[%clk 0:00:27]} 24. Rd7+ {[%clk 0:00:52]}  Kf8 {[%clk 0:00:24]} 25. Ng5 {[%clk 0:00:39]}  Nxd7 {[%clk 0:00:18]} 26. Nxd7+ {[%clk 0:00:26]}  Kg7 {[%clk 0:00:16]} 27. Qxc4 {[%clk 0:00:25]} 1-0


[Site "https://www.chess.com"]